[Event "Titled Tuesday Blitz January 31 Early 2023"]
[White "Orujov, Elshad"]
[Black "Iljin, Timofey"]
[WhiteFideId "13403540"]
[BlackFideId "14110180"]
[WhiteElo "2304"]
[BlackElo "2329"]
[Result "1/2-1/2"]
[Round "03"]
[TimeControl "180+2"]
[Date "2023.01.31"]
[WhiteClock "0:00:21"]
[BlackClock "0:01:52"]

1. e4 {[%clk 0:03:00]}  e5 {[%clk 0:02:57]} 2. Nf3 {[%clk 0:02:59]}  Nc6 {[%clk 0:02:58]} 3. d4 {[%clk 0:02:59]}  exd4 {[%clk 0:02:55]} 4. Nxd4 {[%clk 0:03:00]}  Nf6 {[%clk 0:02:56]} 5. Nc3 {[%clk 0:02:59]}  Bc5 {[%clk 0:02:53]} 6. Be3 {[%clk 0:02:58]}  Bb6 {[%clk 0:02:53]} 7. Qd2 {[%clk 0:02:55]}  O-O {[%clk 0:02:53]} 8. O-O-O {[%clk 0:02:55]}  d6 {[%clk 0:02:48]} 9. f3 {[%clk 0:02:55]}  Nxd4 {[%clk 0:02:46]} 10. Bxd4 {[%clk 0:02:55]}  Be6 {[%clk 0:02:47]} 11. g4 {[%clk 0:02:54]}  Nd7 {[%clk 0:02:43]} 12. h4 {[%clk 0:02:51]}  Ne5 {[%clk 0:02:42]} 13. Be2 {[%clk 0:02:46]}  Nc4 {[%clk 0:02:35]} 14. Bxc4 {[%clk 0:02:45]}  Bxc4 {[%clk 0:02:36]} 15. h5 {[%clk 0:02:39]}  h6 {[%clk 0:02:32]} 16. f4 {[%clk 0:02:31]}  c5 {[%clk 0:02:24]} 17. Be3 {[%clk 0:02:14]}  Ba5 {[%clk 0:02:23]} 18. Qxd6 {[%clk 0:02:07]}  Qxd6 {[%clk 0:02:20]} 19. Rxd6 {[%clk 0:02:07]}  Bxc3 {[%clk 0:02:21]} 20. bxc3 {[%clk 0:02:07]}  Bxa2 {[%clk 0:02:19]} 21. Bxc5 {[%clk 0:02:07]}  Rfe8 {[%clk 0:02:18]} 22. e5 {[%clk 0:02:03]}  b6 {[%clk 0:02:17]} 23. Bd4 {[%clk 0:02:03]}  Rad8 {[%clk 0:02:16]} 24. g5 {[%clk 0:01:50]}  Rxd6 {[%clk 0:01:57]} 25. exd6 {[%clk 0:01:51]}  Rd8 {[%clk 0:01:48]} 26. gxh6 {[%clk 0:01:48]}  gxh6 {[%clk 0:01:49]} 27. Rg1+ {[%clk 0:01:46]}  Kf8 {[%clk 0:01:48]} 28. Bg7+ {[%clk 0:01:33]}  Ke8 {[%clk 0:01:46]} 29. Be5 {[%clk 0:01:17]}  f6 {[%clk 0:01:39]} 30. Bxf6 {[%clk 0:01:13]}  Rxd6 {[%clk 0:01:39]} 31. Be5 {[%clk 0:01:13]}  Rc6 {[%clk 0:01:36]} 32. Rg6 {[%clk 0:00:56]}  Rxg6 {[%clk 0:01:30]} 33. hxg6 {[%clk 0:00:57]}  Be6 {[%clk 0:01:30]} 34. Kd2 {[%clk 0:00:54]}  Bf5 {[%clk 0:01:30]} 35. c4 {[%clk 0:00:50]}  Bxg6 {[%clk 0:01:27]} 36. Kc3 {[%clk 0:00:44]}  Kd7 {[%clk 0:01:25]} 37. Kb4 {[%clk 0:00:39]}  Bxc2 {[%clk 0:01:24]} 38. c5 {[%clk 0:00:39]}  bxc5+ {[%clk 0:01:22]} 39. Kxc5 {[%clk 0:00:39]}  Ke6 {[%clk 0:01:22]} 40. Bd4 {[%clk 0:00:30]}  h5 {[%clk 0:01:20]} 41. f5+ {[%clk 0:00:29]}  Kxf5 {[%clk 0:01:16]} 42. Bg1 {[%clk 0:00:30]}  a6 {[%clk 0:01:14]} 43. Kb4 {[%clk 0:00:30]}  Kg4 {[%clk 0:01:14]} 44. Bh2 {[%clk 0:00:30]}  h4 {[%clk 0:01:13]} 45. Bb8 {[%clk 0:00:31]}  h3 {[%clk 0:01:13]} 46. Ka3 {[%clk 0:00:32]}  Bd3 {[%clk 0:01:13]} 47. Bc7 {[%clk 0:00:32]}  Bb5 {[%clk 0:01:14]} 48. Bh2 {[%clk 0:00:32]}  Kf3 {[%clk 0:01:14]} 49. Bb8 {[%clk 0:00:33]}  Kg2 {[%clk 0:01:15]} 50. Bc7 {[%clk 0:00:33]}  Kf3 {[%clk 0:01:12]} 51. Bb8 {[%clk 0:00:33]}  Ke4 {[%clk 0:01:12]} 52. Bc7 {[%clk 0:00:32]}  Kd3 {[%clk 0:01:13]} 53. Bb8 {[%clk 0:00:32]}  Kc4 {[%clk 0:01:14]} 54. Kb2 {[%clk 0:00:31]}  Kb4 {[%clk 0:01:13]} 55. Ka1 {[%clk 0:00:31]}  a5 {[%clk 0:01:14]} 56. Bh2 {[%clk 0:00:32]}  a4 {[%clk 0:01:15]} 57. Bg3 {[%clk 0:00:33]}  a3 {[%clk 0:01:14]} 58. Bh2 {[%clk 0:00:33]}  Kb3 {[%clk 0:01:15]} 59. Bg3 {[%clk 0:00:33]}  Kc3 {[%clk 0:01:15]} 60. Bh2 {[%clk 0:00:33]}  Kd3 {[%clk 0:01:16]} 61. Bb8 {[%clk 0:00:32]}  Bc4 {[%clk 0:01:16]} 62. Bd6 {[%clk 0:00:31]}  Ke4 {[%clk 0:01:15]} 63. Bb8 {[%clk 0:00:30]}  Kf3 {[%clk 0:01:15]} 64. Kb1 {[%clk 0:00:28]}  Kg2 {[%clk 0:01:16]} 65. Ka1 {[%clk 0:00:28]}  Kf1 {[%clk 0:01:16]} 66. Kb1 {[%clk 0:00:28]}  Ke2 {[%clk 0:01:17]} 67. Ka1 {[%clk 0:00:20]}  Ke3 {[%clk 0:01:18]} 68. Kb1 {[%clk 0:00:19]}  Ke4 {[%clk 0:01:19]} 69. Ka1 {[%clk 0:00:20]}  Kd5 {[%clk 0:01:20]} 70. Kb1 {[%clk 0:00:20]}  Kc6 {[%clk 0:01:21]} 71. Bh2 {[%clk 0:00:17]}  Kd5 {[%clk 0:01:21]} 72. Ka1 {[%clk 0:00:18]}  Kc6 {[%clk 0:01:22]} 73. Kb1 {[%clk 0:00:19]}  Kb7 {[%clk 0:01:23]} 74. Ka1 {[%clk 0:00:19]}  Bd3 {[%clk 0:01:23]} 75. Ka2 {[%clk 0:00:20]}  Kb6 {[%clk 0:01:22]} 76. Kxa3 {[%clk 0:00:20]}  Kc5 {[%clk 0:01:23]} 77. Kb2 {[%clk 0:00:21]}  Kd4 {[%clk 0:01:24]} 78. Kc1 {[%clk 0:00:21]}  Ke3 {[%clk 0:01:25]} 79. Kd1 {[%clk 0:00:22]}  Kf2 {[%clk 0:01:25]} 80. Bb8 {[%clk 0:00:22]}  Kg2 {[%clk 0:01:26]} 81. Kd2 {[%clk 0:00:12]}  Ba6 {[%clk 0:01:27]} 82. Kd1 {[%clk 0:00:11]}  Kf3 {[%clk 0:01:26]} 83. Ke1 {[%clk 0:00:11]}  Ke3 {[%clk 0:01:27]} 84. Bc7 {[%clk 0:00:10]}  Be2 {[%clk 0:01:28]} 85. Bh2 {[%clk 0:00:11]}  Kf3 {[%clk 0:01:29]} 86. Bb8 {[%clk 0:00:09]}  Bb5 {[%clk 0:01:30]} 87. Bc7 {[%clk 0:00:09]}  Bd7 {[%clk 0:01:31]} 88. Bb8 {[%clk 0:00:09]}  Bg4 {[%clk 0:01:32]} 89. Bc7 {[%clk 0:00:09]}  Bh5 {[%clk 0:01:33]} 90. Kf1 {[%clk 0:00:09]}  Bf7 {[%clk 0:01:33]} 91. Kg1 {[%clk 0:00:09]}  Bd5 {[%clk 0:01:34]} 92. Bh2 {[%clk 0:00:10]}  Kg4 {[%clk 0:01:34]} 93. Bb8 {[%clk 0:00:10]}  Bg8 {[%clk 0:01:35]} 94. Bc7 {[%clk 0:00:11]}  Bf7 {[%clk 0:01:36]} 95. Bb8 {[%clk 0:00:12]}  Be6 {[%clk 0:01:37]} 96. Bc7 {[%clk 0:00:13]}  Bd5 {[%clk 0:01:38]} 97. Bb8 {[%clk 0:00:14]}  Bc4 {[%clk 0:01:38]} 98. Bc7 {[%clk 0:00:14]}  Bb3 {[%clk 0:01:39]} 99. Bb8 {[%clk 0:00:13]}  Be6 {[%clk 0:01:39]} 100. Bc7 {[%clk 0:00:14]}  Kf3 {[%clk 0:01:40]} 101. Bb8 {[%clk 0:00:15]}  Ke4 {[%clk 0:01:41]} 102. Bc7 {[%clk 0:00:15]}  Kd5 {[%clk 0:01:42]} 103. Bb8 {[%clk 0:00:16]}  Kc6 {[%clk 0:01:42]} 104. Bh2 {[%clk 0:00:16]}  Kd5 {[%clk 0:01:43]} 105. Bg3 {[%clk 0:00:17]}  Ke4 {[%clk 0:01:44]} 106. Bh2 {[%clk 0:00:18]}  Kf3 {[%clk 0:01:45]} 107. Bb8 {[%clk 0:00:18]}  Bd5 {[%clk 0:01:46]} 108. Bc7 {[%clk 0:00:18]}  Bc4 {[%clk 0:01:46]} 109. Bb8 {[%clk 0:00:19]}  Bb3 {[%clk 0:01:47]} 110. Bc7 {[%clk 0:00:20]}  Ba2 {[%clk 0:01:48]} 111. Bb8 {[%clk 0:00:20]}  Bb3 {[%clk 0:01:49]} 112. Bc7 {[%clk 0:00:20]}  Bc4 {[%clk 0:01:50]} 113. Bb8 {[%clk 0:00:20]}  Bd5 {[%clk 0:01:51]} 114. Bh2 {[%clk 0:00:20]}  Be6 {[%clk 0:01:52]} 115. Bb8 {[%clk 0:00:21]} 1/2-1/2


[Site "https://www.chess.com"]

[Event "Titled Tuesday Blitz January 31 Early 2023"]
[White "Koridze, Lile"]
[Black "Zong, Davis"]
[WhiteFideId "13612514"]
[BlackFideId "30903955"]
[WhiteElo "2191"]
[BlackElo "2151"]
[Result "0-1"]
[Round "03"]
[TimeControl "180+2"]
[Date "2023.01.31"]
[WhiteClock "0:02:02"]
[BlackClock "0:01:01"]

1. d4 {[%clk 0:03:00]}  d5 {[%clk 0:02:58]} 2. c4 {[%clk 0:03:01]}  c6 {[%clk 0:02:59]} 3. Nf3 {[%clk 0:03:01]}  Nf6 {[%clk 0:02:59]} 4. e3 {[%clk 0:03:01]}  Bf5 {[%clk 0:02:56]} 5. Nbd2 {[%clk 0:03:02]}  e6 {[%clk 0:02:54]} 6. Be2 {[%clk 0:03:02]}  Be7 {[%clk 0:02:54]} 7. O-O {[%clk 0:03:03]}  h6 {[%clk 0:02:52]} 8. b3 {[%clk 0:03:03]}  O-O {[%clk 0:02:51]} 9. Bb2 {[%clk 0:03:03]}  Nbd7 {[%clk 0:02:52]} 10. h3 {[%clk 0:03:03]}  Ne4 {[%clk 0:02:46]} 11. Ne5 {[%clk 0:02:59]}  Nxe5 {[%clk 0:02:41]} 12. dxe5 {[%clk 0:02:58]}  Qb6 {[%clk 0:02:24]} 13. Nxe4 {[%clk 0:02:57]}  Bxe4 {[%clk 0:02:18]} 14. cxd5 {[%clk 0:02:57]}  cxd5 {[%clk 0:02:09]} 15. Bd3 {[%clk 0:02:50]}  Bxd3 {[%clk 0:02:03]} 16. Qxd3 {[%clk 0:02:50]}  Rac8 {[%clk 0:02:00]} 17. e4 {[%clk 0:02:50]}  dxe4 {[%clk 0:01:51]} 18. Qxe4 {[%clk 0:02:49]}  Rfd8 {[%clk 0:01:40]} 19. Rad1 {[%clk 0:02:47]}  Bc5 {[%clk 0:01:30]} 20. Qf3 {[%clk 0:02:43]}  Qa6 {[%clk 0:01:14]} 21. a4 {[%clk 0:02:41]}  Qb6 {[%clk 0:01:14]} 22. Bc1 {[%clk 0:02:40]}  Bd4 {[%clk 0:01:11]} 23. Qg3 {[%clk 0:02:41]}  Kh8 {[%clk 0:01:10]} 24. Bf4 {[%clk 0:02:35]}  Rc2 {[%clk 0:01:08]} 25. Rd3 {[%clk 0:02:13]}  Bxf2+ {[%clk 0:01:03]} 26. Rxf2 {[%clk 0:02:11]}  Rxd3 {[%clk 0:01:03]} 27. Qxd3 {[%clk 0:02:01]}  Qxf2+ {[%clk 0:01:01]} 28. Kh1 {[%clk 0:02:02]}  Qxg2# {[%clk 0:01:01]} 0-1


[Site "https://www.chess.com"]

[Event "Titled Tuesday Blitz January 31 Early 2023"]
[White "Szente Varga, Fruzsina"]
[Black "Vetokhin, Ilia"]
[WhiteFideId "712264"]
[BlackFideId "24156078"]
[WhiteElo "2075"]
[BlackElo "2305"]
[Result "1/2-1/2"]
[Round "03"]
[TimeControl "180+2"]
[Date "2023.01.31"]
[WhiteClock "0:00:12"]
[BlackClock "0:00:06"]

1. e4 {[%clk 0:03:00]}  c5 {[%clk 0:02:59]} 2. Nf3 {[%clk 0:02:57]}  Nc6 {[%clk 0:03:00]} 3. Bb5 {[%clk 0:02:56]}  Nf6 {[%clk 0:03:00]} 4. Nc3 {[%clk 0:02:54]}  Qc7 {[%clk 0:03:00]} 5. O-O {[%clk 0:02:51]}  Nd4 {[%clk 0:03:00]} 6. d3 {[%clk 0:02:21]}  a6 {[%clk 0:02:56]} 7. Ba4 {[%clk 0:02:14]}  b5 {[%clk 0:02:51]} 8. Bb3 {[%clk 0:02:15]}  c4 {[%clk 0:02:52]} 9. dxc4 {[%clk 0:02:15]}  Nxb3 {[%clk 0:02:48]} 10. axb3 {[%clk 0:02:01]}  bxc4 {[%clk 0:02:49]} 11. bxc4 {[%clk 0:02:02]}  Qxc4 {[%clk 0:02:43]} 12. e5 {[%clk 0:01:41]}  Ne4 {[%clk 0:02:43]} 13. Nxe4 {[%clk 0:01:41]}  Qxe4 {[%clk 0:02:44]} 14. Re1 {[%clk 0:01:42]}  Qg4 {[%clk 0:02:40]} 15. Qd5 {[%clk 0:01:38]}  Rb8 {[%clk 0:02:34]} 16. h3 {[%clk 0:01:28]}  Qg6 {[%clk 0:02:24]} 17. Qe4 {[%clk 0:01:24]}  Bb7 {[%clk 0:02:18]} 18. Qxg6 {[%clk 0:01:24]}  hxg6 {[%clk 0:02:19]} 19. Ng5 {[%clk 0:01:09]}  f6 {[%clk 0:01:13]} 20. Ne4 {[%clk 0:00:53]}  Rh5 {[%clk 0:00:28]} 21. exf6 {[%clk 0:00:49]}  Re5 {[%clk 0:00:21]} 22. fxg7 {[%clk 0:00:23]}  Bxg7 {[%clk 0:00:18]} 23. Bf4 {[%clk 0:00:22]}  d6 {[%clk 0:00:11]} 24. Bxe5 {[%clk 0:00:20]}  Bxe5 {[%clk 0:00:12]} 25. c3 {[%clk 0:00:20]}  Rc8 {[%clk 0:00:12]} 26. Ng5 {[%clk 0:00:19]}  Kd7 {[%clk 0:00:13]} 27. Nf3 {[%clk 0:00:18]}  Bf6 {[%clk 0:00:13]} 28. Nd4 {[%clk 0:00:18]}  e5 {[%clk 0:00:13]} 29. Nb3 {[%clk 0:00:18]}  Ke6 {[%clk 0:00:13]} 30. Na5 {[%clk 0:00:19]}  Rc7 {[%clk 0:00:13]} 31. Rad1 {[%clk 0:00:19]}  Bc8 {[%clk 0:00:12]} 32. Rd2 {[%clk 0:00:18]}  Bd7 {[%clk 0:00:12]} 33. Red1 {[%clk 0:00:19]}  Be7 {[%clk 0:00:13]} 34. Rd3 {[%clk 0:00:16]}  Rc5 {[%clk 0:00:13]} 35. b4 {[%clk 0:00:15]}  Rb5 {[%clk 0:00:12]} 36. Nc4 {[%clk 0:00:15]}  d5 {[%clk 0:00:12]} 37. Ne3 {[%clk 0:00:13]}  Bc6 {[%clk 0:00:12]} 38. Nc2 {[%clk 0:00:11]}  a5 {[%clk 0:00:12]} 39. bxa5 {[%clk 0:00:11]}  Rxa5 {[%clk 0:00:13]} 40. Nb4 {[%clk 0:00:12]}  Bxb4 {[%clk 0:00:14]} 41. cxb4 {[%clk 0:00:13]}  Rb5 {[%clk 0:00:14]} 42. Rb1 {[%clk 0:00:13]}  d4 {[%clk 0:00:14]} 43. Rc1 {[%clk 0:00:12]}  Kd5 {[%clk 0:00:14]} 44. Rg3 {[%clk 0:00:12]}  Be8 {[%clk 0:00:13]} 45. Rc5+ {[%clk 0:00:11]}  Rxc5 {[%clk 0:00:13]} 46. bxc5 {[%clk 0:00:12]}  Kxc5 {[%clk 0:00:14]} 47. Kf1 {[%clk 0:00:13]}  e4 {[%clk 0:00:15]} 48. Ke1 {[%clk 0:00:14]}  Kc4 {[%clk 0:00:15]} 49. Kd2 {[%clk 0:00:15]}  Kd5 {[%clk 0:00:14]} 50. Rg5+ {[%clk 0:00:15]}  Ke6 {[%clk 0:00:14]} 51. Ra5 {[%clk 0:00:15]}  Kd6 {[%clk 0:00:14]} 52. g4 {[%clk 0:00:15]}  Bc6 {[%clk 0:00:14]} 53. h4 {[%clk 0:00:14]}  Be8 {[%clk 0:00:14]} 54. Ra6+ {[%clk 0:00:14]}  Ke5 {[%clk 0:00:14]} 55. Ra5+ {[%clk 0:00:15]}  Kf4 {[%clk 0:00:15]} 56. Rg5 {[%clk 0:00:15]}  Bf7 {[%clk 0:00:14]} 57. Ke2 {[%clk 0:00:14]}  Bc4+ {[%clk 0:00:14]} 58. Kd2 {[%clk 0:00:15]}  Bf7 {[%clk 0:00:14]} 59. Ke1 {[%clk 0:00:10]}  Be8 {[%clk 0:00:13]} 60. Ra5 {[%clk 0:00:09]}  Kxg4 {[%clk 0:00:13]} 61. Re5 {[%clk 0:00:10]}  Bc6 {[%clk 0:00:13]} 62. Re6 {[%clk 0:00:10]}  Bd5 {[%clk 0:00:13]} 63. Rxg6+ {[%clk 0:00:10]}  Kxh4 {[%clk 0:00:14]} 64. Rg7 {[%clk 0:00:11]}  Bc6 {[%clk 0:00:13]} 65. Kd2 {[%clk 0:00:11]}  Kh5 {[%clk 0:00:13]} 66. Rg8 {[%clk 0:00:11]}  e3+ {[%clk 0:00:14]} 67. fxe3 {[%clk 0:00:11]}  dxe3+ {[%clk 0:00:15]} 68. Kxe3 {[%clk 0:00:12]}  Bd5 {[%clk 0:00:15]} 69. Rd8 {[%clk 0:00:12]}  Be6 {[%clk 0:00:15]} 70. Kf4 {[%clk 0:00:13]}  Kg6 {[%clk 0:00:16]} 71. Rd6 {[%clk 0:00:13]}  Kf6 {[%clk 0:00:15]} 72. Ra6 {[%clk 0:00:14]}  Ke7 {[%clk 0:00:15]} 73. Ke5 {[%clk 0:00:15]}  Bc4 {[%clk 0:00:15]} 74. Ra7+ {[%clk 0:00:15]}  Kf8 {[%clk 0:00:16]} 75. Kf6 {[%clk 0:00:15]}  Kg8 {[%clk 0:00:16]} 76. Kg6 {[%clk 0:00:14]}  Bd3+ {[%clk 0:00:15]} 77. Kh6 {[%clk 0:00:14]}  Kf8 {[%clk 0:00:14]} 78. Kg5 {[%clk 0:00:15]}  Bc4 {[%clk 0:00:15]} 79. Kf6 {[%clk 0:00:16]}  Kg8 {[%clk 0:00:14]} 80. Rc7 {[%clk 0:00:15]}  Ba2 {[%clk 0:00:14]} 81. Rc2 {[%clk 0:00:15]}  Bb1 {[%clk 0:00:14]} 82. Rc1 {[%clk 0:00:14]}  Ba2 {[%clk 0:00:14]} 83. Ra1 {[%clk 0:00:14]}  Bb3 {[%clk 0:00:14]} 84. Rc1 {[%clk 0:00:14]}  Kh8 {[%clk 0:00:14]} 85. Kg6 {[%clk 0:00:14]}  Be6 {[%clk 0:00:08]} 86. Rc6 {[%clk 0:00:13]}  Bg8 {[%clk 0:00:06]} 87. Kh6 {[%clk 0:00:12]}  Ba2 {[%clk 0:00:05]} 88. Rc8+ {[%clk 0:00:12]}  Bg8 {[%clk 0:00:06]} 89. Rc7 {[%clk 0:00:12]} 1/2-1/2


[Site "https://www.chess.com"]

[Event "Titled Tuesday Blitz January 31 Early 2023"]
[White "Lakshmi C"]
[Black "Llanos, Guillermo"]
[WhiteFideId "25035347"]
[BlackFideId "100358"]
[WhiteElo "1928"]
[BlackElo "2290"]
[Result "0-1"]
[Round "03"]
[TimeControl "180+2"]
[Date "2023.01.31"]
[WhiteClock "0:00:31"]
[BlackClock "0:02:10"]

1. e4 {[%clk 0:02:55]}  Nf6 {[%clk 0:02:59]} 2. e5 {[%clk 0:02:53]}  Nd5 {[%clk 0:02:58]} 3. d4 {[%clk 0:02:53]}  d6 {[%clk 0:02:58]} 4. c4 {[%clk 0:02:52]}  Nb6 {[%clk 0:02:58]} 5. f4 {[%clk 0:02:47]}  dxe5 {[%clk 0:02:56]} 6. fxe5 {[%clk 0:02:44]}  c5 {[%clk 0:02:56]} 7. d5 {[%clk 0:02:43]}  e6 {[%clk 0:02:57]} 8. Nc3 {[%clk 0:02:41]}  exd5 {[%clk 0:02:56]} 9. cxd5 {[%clk 0:02:41]}  c4 {[%clk 0:02:57]} 10. d6 {[%clk 0:02:18]}  Nc6 {[%clk 0:02:50]} 11. Nf3 {[%clk 0:02:18]}  Bg4 {[%clk 0:02:50]} 12. Bf4 {[%clk 0:02:17]}  g5 {[%clk 0:02:28]} 13. Bg3 {[%clk 0:02:10]}  Bg7 {[%clk 0:02:28]} 14. Nd5 {[%clk 0:01:40]}  O-O {[%clk 0:02:17]} 15. Nxb6 {[%clk 0:00:42]}  Qxb6 {[%clk 0:02:13]} 16. Bxc4 {[%clk 0:00:40]}  Qb4+ {[%clk 0:02:11]} 17. Qd2 {[%clk 0:00:31]}  Qxc4 {[%clk 0:02:10]} 0-1


[Site "https://www.chess.com"]

[Event "Titled Tuesday Blitz January 31 Early 2023"]
[White "Bobomurodova, Maftuna"]
[Black "Danielyan, Vahe"]
[WhiteFideId "14207400"]
[BlackFideId "13304828"]
[WhiteElo "1946"]
[BlackElo "2346"]
[Result "1-0"]
[Round "03"]
[TimeControl "180+2"]
[Date "2023.01.31"]
[WhiteClock "0:00:19"]
[BlackClock "0:00:02"]

1. e4 {[%clk 0:02:16]}  Nf6 {[%clk 0:02:51]} 2. e5 {[%clk 0:02:15]}  Nd5 {[%clk 0:02:50]} 3. d4 {[%clk 0:02:13]}  d6 {[%clk 0:02:47]} 4. c4 {[%clk 0:02:13]}  Nb6 {[%clk 0:02:46]} 5. Nf3 {[%clk 0:02:12]}  g6 {[%clk 0:02:44]} 6. Nc3 {[%clk 0:02:10]}  Bg7 {[%clk 0:02:43]} 7. exd6 {[%clk 0:02:08]}  cxd6 {[%clk 0:02:43]} 8. h3 {[%clk 0:02:08]}  O-O {[%clk 0:02:43]} 9. Be2 {[%clk 0:02:08]}  Nc6 {[%clk 0:02:42]} 10. O-O {[%clk 0:02:08]}  e5 {[%clk 0:02:39]} 11. d5 {[%clk 0:02:05]}  Na5 {[%clk 0:02:32]} 12. Nd2 {[%clk 0:02:01]}  Bf5 {[%clk 0:02:27]} 13. b3 {[%clk 0:02:00]}  e4 {[%clk 0:02:10]} 14. Bb2 {[%clk 0:01:58]}  Rc8 {[%clk 0:02:08]} 15. Bg4 {[%clk 0:01:45]}  Nxd5 {[%clk 0:01:56]} 16. Rc1 {[%clk 0:01:07]}  Nf4 {[%clk 0:01:45]} 17. Bxf5 {[%clk 0:00:55]}  gxf5 {[%clk 0:01:43]} 18. Rb1 {[%clk 0:00:48]}  Qg5 {[%clk 0:01:40]} 19. g3 {[%clk 0:00:43]}  Nxh3+ {[%clk 0:01:29]} 20. Kh2 {[%clk 0:00:43]}  Qh6 {[%clk 0:01:04]} 21. Kg2 {[%clk 0:00:40]}  Ng5 {[%clk 0:00:47]} 22. Rh1 {[%clk 0:00:39]}  Qg6 {[%clk 0:00:46]} 23. Nd5 {[%clk 0:00:38]}  Nc6 {[%clk 0:00:44]} 24. Nf4 {[%clk 0:00:37]}  Ne5 {[%clk 0:00:37]} 25. Nxg6 {[%clk 0:00:37]}  hxg6 {[%clk 0:00:33]} 26. Qe2 {[%clk 0:00:36]}  Rfe8 {[%clk 0:00:31]} 27. Qe3 {[%clk 0:00:36]}  Ne6 {[%clk 0:00:30]} 28. Bxe5 {[%clk 0:00:35]}  dxe5 {[%clk 0:00:30]} 29. Rh2 {[%clk 0:00:31]}  Red8 {[%clk 0:00:30]} 30. Rbh1 {[%clk 0:00:29]}  Rd3 {[%clk 0:00:31]} 31. Qe2 {[%clk 0:00:29]}  Rcd8 {[%clk 0:00:30]} 32. Nf1 {[%clk 0:00:29]}  Nd4 {[%clk 0:00:28]} 33. Qb2 {[%clk 0:00:26]}  Nf3 {[%clk 0:00:29]} 34. Rh7 {[%clk 0:00:25]}  R8d4 {[%clk 0:00:15]} 35. Ne3 {[%clk 0:00:24]}  Rd2 {[%clk 0:00:15]} 36. Qa3 {[%clk 0:00:23]}  Rd7 {[%clk 0:00:10]} 37. Qxa7 {[%clk 0:00:22]}  f4 {[%clk 0:00:09]} 38. Nd5 {[%clk 0:00:22]}  Rd8 {[%clk 0:00:02]} 39. Qxb7 {[%clk 0:00:20]}  Ng5 {[%clk 0:00:02]} 40. Rxg7+ {[%clk 0:00:18]}  Kxg7 {[%clk 0:00:02]} 41. Qe7 {[%clk 0:00:19]} 1-0


[Site "https://www.chess.com"]

[Event "Titled Tuesday Blitz January 31 Early 2023"]
[White "Myshakov, Fyodor"]
[Black "De Souza, Cristiano Gomes"]
[WhiteFideId "14111284"]
[BlackFideId "2151758"]
[WhiteElo "2292"]
[BlackElo "2018"]
[Result "1-0"]
[Round "03"]
[TimeControl "180+2"]
[Date "2023.01.31"]
[WhiteClock "0:02:11"]
[BlackClock "0:01:07"]

1. c4 {[%clk 0:02:59]}  Nf6 {[%clk 0:02:58]} 2. Nc3 {[%clk 0:02:59]}  g6 {[%clk 0:02:59]} 3. Nf3 {[%clk 0:02:59]}  Bg7 {[%clk 0:02:57]} 4. g3 {[%clk 0:03:00]}  O-O {[%clk 0:02:54]} 5. Bg2 {[%clk 0:03:01]}  d6 {[%clk 0:02:54]} 6. O-O {[%clk 0:03:02]}  Nc6 {[%clk 0:02:54]} 7. d4 {[%clk 0:03:02]}  Bf5 {[%clk 0:02:53]} 8. Nh4 {[%clk 0:03:02]}  Bd7 {[%clk 0:02:52]} 9. b3 {[%clk 0:03:02]}  Qc8 {[%clk 0:02:51]} 10. Bb2 {[%clk 0:02:59]}  Bh3 {[%clk 0:02:50]} 11. Nd5 {[%clk 0:02:59]}  Bxg2 {[%clk 0:02:47]} 12. Nxg2 {[%clk 0:02:55]}  e6 {[%clk 0:02:47]} 13. Nxf6+ {[%clk 0:02:51]}  Bxf6 {[%clk 0:02:46]} 14. e4 {[%clk 0:02:50]}  e5 {[%clk 0:02:44]} 15. d5 {[%clk 0:02:48]}  Ne7 {[%clk 0:02:42]} 16. f4 {[%clk 0:02:48]}  Kg7 {[%clk 0:02:32]} 17. fxe5 {[%clk 0:02:48]}  Bxe5 {[%clk 0:02:33]} 18. Bxe5+ {[%clk 0:02:47]}  dxe5 {[%clk 0:02:33]} 19. Ne3 {[%clk 0:02:46]}  Qd7 {[%clk 0:02:31]} 20. Ng4 {[%clk 0:02:46]}  f6 {[%clk 0:02:28]} 21. h3 {[%clk 0:02:44]}  h5 {[%clk 0:02:27]} 22. Nf2 {[%clk 0:02:44]}  c6 {[%clk 0:02:22]} 23. Rc1 {[%clk 0:02:40]}  cxd5 {[%clk 0:02:20]} 24. cxd5 {[%clk 0:02:41]}  Rac8 {[%clk 0:02:20]} 25. Qd2 {[%clk 0:02:41]}  Rxc1 {[%clk 0:02:17]} 26. Rxc1 {[%clk 0:02:42]}  Rc8 {[%clk 0:02:17]} 27. Rc4 {[%clk 0:02:40]}  b5 {[%clk 0:02:09]} 28. Rc3 {[%clk 0:02:39]}  Rxc3 {[%clk 0:02:02]} 29. Qxc3 {[%clk 0:02:39]}  Qc8 {[%clk 0:02:03]} 30. Qxc8 {[%clk 0:02:38]}  Nxc8 {[%clk 0:02:02]} 31. Nd1 {[%clk 0:02:38]}  Nd6 {[%clk 0:02:03]} 32. Nf2 {[%clk 0:02:35]}  b4 {[%clk 0:02:00]} 33. Kg2 {[%clk 0:02:35]}  Nb5 {[%clk 0:01:59]} 34. Nd3 {[%clk 0:02:35]}  a5 {[%clk 0:01:56]} 35. Nc5 {[%clk 0:02:35]}  Nc3 {[%clk 0:01:52]} 36. Nb7 {[%clk 0:02:29]}  Kf7 {[%clk 0:01:49]} 37. Nxa5 {[%clk 0:02:26]}  Nxe4 {[%clk 0:01:47]} 38. Nc6 {[%clk 0:02:25]}  Nc3 {[%clk 0:01:41]} 39. Nxb4 {[%clk 0:02:25]}  Ke7 {[%clk 0:01:41]} 40. a4 {[%clk 0:02:25]}  Kd6 {[%clk 0:01:42]} 41. a5 {[%clk 0:02:25]}  Kc5 {[%clk 0:01:30]} 42. a6 {[%clk 0:02:24]}  Nb5 {[%clk 0:01:30]} 43. Nc6 {[%clk 0:02:24]}  Kxd5 {[%clk 0:01:27]} 44. a7 {[%clk 0:02:23]}  Nc7 {[%clk 0:01:26]} 45. Nb4+ {[%clk 0:02:17]}  Kd4 {[%clk 0:01:16]} 46. Kf3 {[%clk 0:02:17]}  Kc3 {[%clk 0:01:14]} 47. Nd5+ {[%clk 0:02:16]}  Nxd5 {[%clk 0:01:09]} 48. a8=Q {[%clk 0:02:16]}  Nb4 {[%clk 0:01:08]} 49. Qf8 {[%clk 0:02:12]}  Kxb3 {[%clk 0:01:07]} 50. Qxf6 {[%clk 0:02:11]} 1-0


[Site "https://www.chess.com"]

[Event "Titled Tuesday Blitz January 31 Early 2023"]
[White "Fernandez, Michael"]
[Black "Dilmukhametov, Artur"]
[WhiteFideId "5803560"]
[BlackFideId "24179922"]
[WhiteElo "2181"]
[BlackElo "2276"]
[Result "1-0"]
[Round "03"]
[TimeControl "180+2"]
[Date "2023.01.31"]
[WhiteClock "0:01:42"]
[BlackClock "0:01:24"]

1. b4 {[%clk 0:03:00]}  e5 {[%clk 0:02:50]} 2. Bb2 {[%clk 0:03:00]}  Nf6 {[%clk 0:02:47]} 3. b5 {[%clk 0:02:59]}  e4 {[%clk 0:02:44]} 4. e3 {[%clk 0:02:56]}  d5 {[%clk 0:02:43]} 5. c4 {[%clk 0:02:55]}  c6 {[%clk 0:02:42]} 6. a4 {[%clk 0:02:55]}  Be6 {[%clk 0:02:38]} 7. Qc2 {[%clk 0:02:52]}  Nbd7 {[%clk 0:02:35]} 8. Ne2 {[%clk 0:02:49]}  cxb5 {[%clk 0:02:14]} 9. axb5 {[%clk 0:02:48]}  dxc4 {[%clk 0:02:14]} 10. Nf4 {[%clk 0:02:47]}  Qe7 {[%clk 0:02:08]} 11. Ba3 {[%clk 0:02:40]}  Nc5 {[%clk 0:02:03]} 12. Nxe6 {[%clk 0:02:31]}  Qxe6 {[%clk 0:02:01]} 13. Bxc4 {[%clk 0:02:31]}  Qe5 {[%clk 0:01:54]} 14. Bb2 {[%clk 0:02:22]}  Qg5 {[%clk 0:01:45]} 15. O-O {[%clk 0:02:09]}  Bd6 {[%clk 0:01:42]} 16. f4 {[%clk 0:02:01]}  Qh5 {[%clk 0:01:40]} 17. Bxf6 {[%clk 0:01:59]}  gxf6 {[%clk 0:01:40]} 18. Nc3 {[%clk 0:01:56]}  Rg8 {[%clk 0:01:38]} 19. Nxe4 {[%clk 0:01:53]}  Nxe4 {[%clk 0:01:36]} 20. Qxe4+ {[%clk 0:01:52]}  Kf8 {[%clk 0:01:36]} 21. Qxb7 {[%clk 0:01:47]}  Rd8 {[%clk 0:01:28]} 22. Rxa7 {[%clk 0:01:44]}  Qg4 {[%clk 0:01:24]} 23. Qxf7# {[%clk 0:01:42]} 1-0


[Site "https://www.chess.com"]